Cogmind - Beta 16.1 @@@ ROGUE MODE // 2026.04.04 @ 23:12:44 Player: Thqwib-Linux Result: Destroyed by JI-48V(R) with Subdweller Machine Gun Performance ------------- Evolutions (0) 0 Regions Visited (2) 400 Robots Destroyed (28) 140 Value Destroyed (535) 535 Prototype IDs (4) 80 Alien Tech Used (0) 0 Bonus (0) 0 TOTAL SCORE: 1155 Bonus ------- None Cogmind --------- Core Integrity 0/250 Matter 283/300 Energy 125/125 System Corruption 0% Temperature Cool (0) Movement Walking (120) Location -10/Subcaves Parts ------- > --- POWER (1) -------- Light Ion Engine > --- PROPULSION (2) --- Aluminum Leg Aluminum Leg > --- UTILITY (2) ------ Disposable Heat Sink Makeshift Light Armor Plating > --- WEAPON (2) ------- Advanced Beam Cannon Battle Cannon > --- INVENTORY (5) ---- Aluminum Leg Seismic Detector Advanced Beam Cannon Assault Rifle Heavy Battle Rifle Peak State ------------ > --- POWER ------------ Ion Engine > --- PROPULSION ------- Aluminum Leg Aluminum Leg > --- UTILITY ---------- Disposable Heat Sink Makeshift Light Armor Plating > --- WEAPON ----------- Advanced Beam Cannon Battle Cannon > --- INVENTORY -------- Aluminum Leg Seismic Detector Advanced Beam Cannon Assault Rifle Heavy Battle Rifle [Rating: 15] Favorites ----------- Power Ion Engine Engine Ion Engine Power Core Light Nuclear Core Propulsion Aluminum Leg Treads Light Treads Leg Aluminum Leg Utility Seismic Detector Device Seismic Detector Storage Medium Storage Unit Processor Targeting Computer Protection Makeshift Light Armor Plating Weapon Light Assault Rifle Energy Cannon Advanced Beam Cannon Ballistic Gun Light Assault Rifle Ballistic Cannon Battle Cannon Build | -11 -10 -10 ------- Run | Yrd Mat Sub Slots Evolved . | . . . Power . | . . . Propulsion . | . . . Utility . | . . . Weapon . | . . . Parts Attached 24 | 3 15 6 Power 3 | . 2 1 Engine 2 | . 1 1 Core 1 | . 1 . Reactor . | . . . Propulsion 6 | 2 2 2 Treads 2 | 2 . . Leg 4 | . 2 2 Wheel . | . . . Hover . | . . . Flight . | . . . Utility 7 | 1 4 2 Device 2 | 1 . 1 Storage 2 | . 2 . Processor 1 | . 1 . Hackware . | . . . Protection 2 | . 1 1 Artifact . | . . . Weapon 8 | . 7 1 Energy Gun . | . . . Energy Cannon 2 | . 2 . Ballistic Gun 5 | . 5 . Ballistic Cannon 1 | . . 1 Launcher . | . . . Special Weapon . | . . . Impact Weapon . | . . . Slashing Weapon . | . . . Piercing Weapon . | . . . Special Melee Weapon . | . . . Unidentified Prototypes . | . . . Parts Lost 4 | . 2 2 Power 1 | . . 1 Propulsion . | . . . Utility 1 | . . 1 Weapon 2 | . 2 . Highest Loss Streak 1 | . 1 1 To Critical Strikes . | . . . Average Backups 6 | 3 7 4 Power . | 1 . . Propulsion 2 | 1 2 1 Utility 1 | . 1 . Weapon 2 | 1 2 3 Tool/Special . | . . . Unused Backups 13 | . 8 5 Power 1 | . 1 . Propulsion 4 | . 3 1 Utility 3 | . 2 1 Weapon 5 | . 2 3 Tool/Special . | . . . Average Slot Usage (%) 98 | . 99 97 Engine 8 | . 6 12 Core 4 | . 7 . Treads 4 | . 7 . Leg 23 | . 20 28 Device 14 | . 9 21 Storage 8 | . 14 . Processor 2 | . 3 1 Protection 2 | . 1 4 Energy Cannon 7 | . 3 14 Ballistic Gun 16 | . 24 4 Ballistic Cannon 3 | . . 9 Peak Build Rating 15 | 7 12 15 Average Rating 9 | 6 8 11 On Entrance 7 | 6 7 10 Avg Prop Armor Cover (%) . | . . . Naked Turns . | . . . Heaviest Build 22 | 14 22 20 Greatest Support 40 | 40 40 20 Greatest Overweight (x) 1 | . 1 . Average Overweight (x) . | . . . Largest Inventory Capacity 10 | 8 10 10 Average Capacity 7 | 8 9 5 Most Carried 10 | 7 10 10 Average Carried 6 | 2 7 4 Final Capacity 10 | 8 10 5 Final Carried 10 | 2 10 5 Class Distribution -------------------- 100% | Mutant Dominant Class ---------------- Mutant | -10/Materials Mutant | -10/Subcaves Resources | -11 -10 -10 ----------- Run | Yrd Mat Sub Matter Collected 810 | 189 437 184 Remotely . | . . . Salvage Created 781 | 23 540 218 Parts 55 | 3 39 13 Haulers Intercepted 2 | . 2 . Recyclers Shooed . | . . . Parts Field Recycled . | . . . Retrieved Matter . | . . . Parts Self-Destructed 6 | . . 6 Prevented . | . . . Parts Restored . | . . . Kills | -11 -10 -10 ------- Run | Yrd Mat Sub Combat Hostiles Destroyed 23 | . 15 8 Guns 19 | . 15 4 Cannons 4 | . . 4 Classes Destroyed 7 | 1 5 1 Worker 1 | . 1 . Tunneler 1 | 1 . . Hauler 2 | . 2 . Watcher 1 | . 1 . Swarmer 13 | . 9 4 Grunt 6 | . 6 . Subdweller 4 | . . 4 Best Kill Streak 4 | 1 4 4 Combat Bots Only 4 | . 4 4 Max Kills in Single Turn 1 | 1 1 1 Gunslinging . | . . . Exploded . | . . . Melee . | . . . Uniques/NPCs Destroyed . | . . . Combat | -11 -10 -10 -------- Run | Yrd Mat Sub Hostile Shots Fired 169 | . 101 68 Missed 51 | . 24 27 Hits 118 | . 77 41 Projectile 118 | . 77 41 Damage Taken 1299 | . 758 541 Core 261 | . 114 147 Absorbed by Shields . | . . . Redirected to Shielding 4 | . 4 . Regen/Repaired (Parts) 66 | . 66 . Core Remaining (%) 100 | 100 . . Volleys Fired 112 | 1 77 34 Largest 2 | 2 2 2 Hottest 101 | 40 88 101 Shots Fired 209 | 2 146 61 Gun 155 | 2 135 18 Cannon 54 | . 11 43 Launcher . | . . . Special . | . . . Kinetic 164 | 2 135 27 Thermal 45 | . 11 34 Explosive . | . . . Electromagnetic . | . . . Robot Hit Streak 24 | 1 12 24 Robot Miss Streak 3 | . 3 3 Penetration Max . | . . . Secondary Targets 2 | . 2 . Max Gunslinging Chain 1 | . 1 . Shots Hit Robots 129 | 1 87 41 Core Hits 49 | 1 34 14 Critical Kills . | . . . Critical Parts Destroyed . | . . . Critical Strikes . | . . . Melee Attacks . | . . . Impact . | . . . Slashing . | . . . Piercing . | . . . Sneak Attacks . | . . . Combat Hostiles . | . . . Follow-up Attacks . | . . . Damage Inflicted 1681 | 12 999 670 Guns 1046 | 12 936 98 Cannons 611 | . 40 571 Explosions . | . . . Melee . | . . . Ramming 24 | . 23 1 Kinetic 1225 | 12 936 277 Thermal 432 | . 40 392 Explosive . | . . . Electromagnetic . | . . . Impact . | . . . Slashing . | . . . Piercing . | . . . Highest Corruption . | . . . Average Corruption . | . . . Corruption Purged . | . . . Corruption Blocked . | . . . Overload Shots . | . . . Overflow Damage . | . . . Projectiles . | . . . Explosions . | . . . Melee . | . . . Knockbacks 3 | . 1 2 Impact 1 | . 1 . Kinetic 2 | . . 2 Secondary . | . . . Self-Inflicted Damage . | . . . Shots . | . . . Rammed . | . . . Targets Rammed 9 | . 8 1 Kicked 9 | . 8 1 Crushed . | . . . Highest Temperature 178 | . 178 28 Average Temperature 24 | . 29 8 Received Heat Transfer 285 | . 237 48 Siege Activations . | . . . Martial Activations . | . . . Shielding Activations . | . . . Robots Disrupted . | . . . Combat Hostiles . | . . . Robots Corrupted . | . . . Combat Hostiles . | . . . Parts Fried . | . . . Impact Corruptions . | . . . Robots Melted . | . . . Combat Hostiles . | . . . Parts Melted 1 | . . 1 Heat Transferred 777 | . 74 703 Parts Sabotaged . | . . . Parts Stolen . | . . . Parts Stripped . | . . . Power Chain Reactions . | . . . Alert | -11 -10 -10 ------- Run | Yrd Mat Sub Maximum Alert Level . | . . . Low Security (%) 100 | 100 100 . Level 1 . | . . . Level 2 . | . . . Level 3 . | . . . Level 4 . | . . . Level 5 . | . . . High Security . | . . . Max Security . | . . . Peak Influence 148 | 5 148 . Initial . | . . . Average 53 | 1 54 . Influence Increases 638 | 5 493 140 Destroy 0b10 Robot/C 380 | . 300 80 Destroy 0b10 Robot/NC 25 | 5 20 . Destroy Leader 66 | . 66 . Successful Hack 32 | . 32 . Lose Combat Pursuer 135 | . 75 60 Influence Decreases 638 | 5 405 228 Entered New Map 43 | . . 43 Time Decay 575 | 5 385 185 Lost Part 20 | . 20 . Squads Dispatched 2 | . 2 . Investigation . | . . . Extermination . | . . . Reinforcement 2 | . 2 . Assault . | . . . Garrison . | . . . Intercept . | . . . Searches Triggered . | . . . Construction Impeded . | . . . Haulers Reinforced . | . . . Active Scanning Responses . | . . . Cargo Convoy Interrupts . | . . . Stealth | -11 -10 -10 --------- Run | Yrd Mat Sub Distress Signals 4 | . 4 . Communications Jammed . | . . . Distress Signals . | . . . Times Spotted 37 | . 27 10 Peak Tracking Total 6 | . 4 6 Tactical Retreats 6 | . 4 2 Traps | -11 -10 -10 ------- Run | Yrd Mat Sub Traps Triggered 1 | . 1 . Indirectly . | . . . Trap Hack Attempts . | . . . Triggered . | . . . Disarmed . | . . . Reprogrammed . | . . . Reused . | . . . Traps Extracted . | . . . Installed . | . . . Triggered . | . . . Machines | -11 -10 -10 ---------- Run | Yrd Mat Sub Machines Disabled . | . . . Max in Single Turn . | . . . Machines Repaired . | . . . Machines Dismantled . | . . . Machines Sabotaged . | . . . Overloaded Fab Kills . | . . . Hacking | -11 -10 -10 --------- Run | Yrd Mat Sub Machines Accessed 8 | . 8 . Terminals 6 | . 6 . Fabricators . | . . . Repair Stations 1 | . 1 . Recycling Units 1 | . 1 . Scanalyzers . | . . . Garrison Access . | . . . Total Hacks 23 | . 23 . Successful 13 | . 13 . Failed 10 | . 10 . Catastrophic 1 | . 1 . Database Lockouts . | . . . Manual 11 | . 11 . Terminals 19 | . 19 . Fabricators . | . . . Repair Stations 2 | . 2 . Recycling Units 2 | . 2 . Scanalyzers . | . . . Garrison Access . | . . . Terminal Hacks 7 | . 7 . Robot Analysis 1 | . 1 . Prototype ID Bank 2 | . 2 . Locate Traps 1 | . 1 . Registered Components 1 | . 1 . Zone Layout 2 | . 2 . Fabricator Hacks . | . . . Repair Station Hacks 2 | . 2 . Scan Component 1 | . 1 . Repair 1 | . 1 . Recycling Unit Hacks 1 | . 1 . Report Inventory 1 | . 1 . Scanalyzer . | . . . Garrison Access Hacks . | . . . Unauthorized Hacks 3 | . 3 . Terminals 3 | . 3 . Botnet 3 | . 3 . Fabricators . | . . . Repair Stations . | . . . Recycling Units . | . . . Scanalyzers . | . . . Garrison Access . | . . . Data Cores Recovered . | . . . Used . | . . . Hacking Detections 8 | . 8 . Full Trace Events . | . . . Feedback Events . | . . . Feedback Blocked . | . . . Robot Schematics Acquired . | . . . Robots Built . | . . . Authchips . | . . . Time . | . . . Total Robot Build Rating . | . . . Part Schematics Acquired . | . . . Parts Built . | . . . Authchips . | . . . Time . | . . . Total Part Build Rating . | . . . Part Studies Acquired . | . . . Parts Repaired 1 | . 1 . Time 26 | . 26 . Parts Recycled . | . . . Recycled Matter . | . . . Retrieved Matter . | . . . Retrieved Components . | . . . Parts Scanalyzed . | . . . Part Schematics Acquired . | . . . Parts Damaged . | . . . Bothacking | -11 -10 -10 ------------ Run | Yrd Mat Sub Used RIF Installer . | . . . Robots Hacked . | . . . Non-combat . | . . . Combat . | . . . Robot Hacks Applied . | . . . Relay Couplers Released . | . . . Fabnet Peak Effective % . | . . . Robots Rewired . | . . . Allies Hacked . | . . . Hacks Repelled . | . . . Allies | -11 -10 -10 -------- Run | Yrd Mat Sub Total Allies . | . . . Largest Group . | . . . Highest-Rated Group . | . . . Highest-Rated Ally . | . . . Total Orders . | . . . Ally Attacks . | . . . Total Damage . | . . . Kills . | . . . Allies Corrupted . | . . . Allies Melted . | . . . Intel | -11 -10 -10 ------- Run | Yrd Mat Sub Active Infowar (turns) 1683 | 10 1016 657 Seismic 1683 | 10 1016 657 Robot Analysis Total 1 | . 1 . Derelict Logs Recovered 1 | . . 1 Drone Launches . | . . . Drone Recoveries . | . . . Exploration | -11 -10 -10 ------------- Run | Yrd Mat Sub Turns Passed 2458 | 26 1454 978 Spaces Moved 1593 | 11 878 704 Core . | . . . Treads 162 | 11 151 . Legs 1431 | . 727 704 Wheels . | . . . Hover . | . . . Flight . | . . . Fastest Speed 120 | 160 120 120 Average Speed 124 | 160 127 120 Slowest Speed 190 | 160 190 120 Overloaded Moves . | . . . Propulsion Burnouts . | . . . Robots Hopped . | . . . Potential Cave-ins . | . . . Cave-ins Triggered . | . . . Exploration Rate (%) 44 | 3 98 33 Regions Visited 2 Branch Regions 1 Pre-discovered Areas . | . . . Known Exits Taken . | . . . Unknown Exits Taken 2 | 1 1 . Scrap Searched 2 | . . 2 Spaces Dug . | . . . Terrain Destroyed . | . . . Melee . | . . . Projectile . | . . . AOE . | . . . Terrain Rammed . | . . . Walls Destroyed . | . . . Machines Disabled . | . . . Actions | -11 -10 -10 --------- Run | Yrd Mat Sub Total 1886 | 20 1086 780 Wait 95 | . 69 26 Move 1591 | 10 877 704 Hop . | . . . Pick Up 19 | . 17 2 Fast Attach 12 | 1 6 5 Attach 4 | 2 2 . Detach 6 | 2 3 1 Swap 12 | . 10 2 Drop 26 | 4 17 5 Fire 112 | 1 77 34 Melee . | . . . Ram . | . . . Kick 9 | . 8 1 Crush . | . . . Escape Stasis . | . . . Rewire . | . . . Trap . | . . . Miscellaneous . | . . . Route ------- -11/Scrapyard -10/Materials (discovered 5 exits: [*Mat x3] / [*Min] / [*Sub]) -10/Subcaves (discovered 1 exit: [*Mat]) History --------- Turn | Location | Event 6 | -11/Scrapyard | Discovered new exit (range 3) 27 | -11/Scrapyard | Entered Materials 262 | -10/Materials | Discovered new exit (range 5) 318 | -10/Materials | Build established: Mutant 465 | -10/Materials | Discovered new exit (range 16) 874 | -10/Materials | Discovered new exit (range 15) 1344 | -10/Materials | Discovered new exit (range 15) 1409 | -10/Materials | Repaired Aluminum Leg 1478 | -10/Materials | Discovered new exit (range 3) 1481 | -10/Materials | Entered Subcaves 1638 | -10/Subcaves | Core integrity fell below 50% 1788 | -10/Subcaves | Core integrity fell below 20% 1834 | -10/Subcaves | A swath of the cavern ceiling suddenly collapsed 2154 | -10/Subcaves | Disturbed a concealed Subdweller 2436 | -10/Subcaves | Discovered new exit (range 12) 2446 | -10/Subcaves | Ambushed by Subdwellers from Twisted Machinery 2459 | -10/Subcaves | Destroyed by JI-48V(R) with Subdweller Machine Gun Last Messages --------------- 02154_ 5F-Z0J(R) knocked back. 02155_ Acquired 5 matter. 02159_ 5F-Z0J(R) affixes Scrap Shield Fragment to Scrap Shield. 02161_ Acquired 5 matter. 02161_ Ion Engine destroyed. 02165_ 5F-Z0J(R) affixes Scrap Shield Fragment to Scrap Shield. 02166_ Acquired 1 matter. 02174_ 5F-Z0J(R) destroyed. 02177_ Acquired 19 matter. 02279_ Kicked 37-QSU(O). 02291_ Acquired Lgt. Ion Engine. 02311_ Acquired 3 matter. 02337_ Acquired derelict log, extracted data. Data stored: Storage entrances (x1). 02436_ EXIT=FOUND 02446_ V0-M8S(R) emerges from the Twisted Machinery. 02453_ JI-48V(R) knocked back. Map ----- +----------------------------------------------------+ | ????????????????????????????????????????????????? | | ????????????????????????????????????????????????? | | ????????????????????????????????????????????????? | | ????????????????????????????????????????????????? | | ????????????????????????????????????????????????? | | ????????????????????????????????????????????????? | | ????????????????????????????????????????????????? | | ????????????????????????????????????????????????? | | ????????????????????????????????????????????????? | | ????????????????????????????????????????????????? | | ????????????????????????????????????????????????? | | ????????????????????????????????????????????????? | | ????????????????????????????????????????????????? | | ????????????????????????????????????????????????? | | ????????????????????????????????????????????????? | | ????????????????????????????????????????????????? | | ????????????????????????????????????????????????? | | ????????????????????????????????????????????????? | | ????????????????????????????????????????????????? | | ????????????????????????????????????????????????? | | ????????????????????????????????????????????????? | | ????????????????????????????????????????????????? | | ????????????????????????????????????????????????? | | ?????????????????????####???????#???????????????? | | ?????????????????????# ##???## ####????????????? | | ?????????????????????# @#??" #????????????? | | ????????????????????## R##"" #????????????? | | ???????????????###### R " #????????????? | | ???????????????# ## % < ##???????????????? | | ???????????????# ## % ##????####????????? | | ??????????????## ####?# ####?????# ##??????? | | ??????????????# #?????##????????# #??????? | | ??????????????## ##???????????????# ##?????? | | ??????????????## ##???????? ??????# ##????? | | ??????????????# ##???????? ??????# ##???? | | ??????????????# ##??????? #??????# #?### | | ??????????????# ##????? ##?????# ### | | ??????????????# ##???? #????## | | ??????????????# ##??? #????# | | ????????####### ##?# #####?# ### | | ????????#"%## ## ###### ##### | | ????????#%!### #?## ##?## | | ????????#%##%#" ### #???# ##?? | | ????????#[#&% ### ## #???# ##? | | ????????#%&%##" #?? ##???# #? | | ????????######## #????????????# ##? | | ???????????????# ### ###??????##### ##?? | | ???????????????# ##?## ##?????# ## ##?# | | ???????????????# #???# ##???## ### | | ???????????????## #??## ##### | +----------------------------------------------------+ Best States ------------- Heat Dissipation 25 Coolant Potential 50 Energy Generation 14 Energy Capacity 250 Matter Stores 300 Matter Capacity 300 Sight Range 16 Terrain Scan Density 10 Armor Coverage 100 Propulsion Shielding 33 Evasion (%) 55 Targeting Accuracy 5 Recoil Reduction 2 Item Schematics ----------------- None Robot Schematics ------------------ None Fabricated ------------ Nothing Repaired ---------- Aluminum Leg | 26% | -10/Materials Studied --------- None Alien Tech Used ----------------- None Achievements -------------- None Challenges ------------ None Game ------ Seed CooledMetaTurbovents Manual? 0 Play Time 00:22:15 Cumulative 97.7 hours Start 2026.04.04 @ 22:43:53 End 2026.04.04 @ 23:12:44 Sessions 1 Manual Loads 0 Difficulty Rogue Special Mode None Game No. 89 Rogue 89 Adventurer 0 Explorer 0 Win Type - Total 5 Types 3/0/1/1/0/0/0/0/0/0 Lore% 54 Gallery% 46 Achievement% 41 Wizard Run 0 Options --------- Layout 2 ASCII 0 Keyboard 1 Movement Arrows Keybinds 0 Fullscreen 2 Font 24/Terminus Map View 50x44 Zoom Use 0% Tactical HUD 1 Map Filters NONE Filters NONE Steam 1 RUN: f2bfe297-2c28-4665-8900-cc148e4fc4e0